bitfinex/quotes_ETHUSD_20241109
["timestamp","ask_amount","ask_price","bid_price","bid_amount"]
[1731150235338,0.63726107,3054.7,3053.7,0.7773]
[1731150237632,0.6598262,3054.9,3053.7,0.7773]
[1731150241241,0.6598262,3054.9,3053.9,0.7773]
[1731150241743,3.0,3055.1,3053.9,0.7773]
[1731150243746,3.0,3054.8,3053.9,0.7773]
[1731150244353,3.0,3054.5,3053.9,0.7773]
[1731150246402,0.55,3054.7,3053.9,0.7773]
[1731150247404,4.23425573,3054.7,3053.9,0.7773]
[1731150247606,2.71278447,3054.6,3053.9,0.7773]
[1731150247852,3.55,3054.5,3053.9,0.7773]
[1731150248162,0.69470402,3054.4,3053.9,0.7773]
[1731150248517,0.55,3054.3,3053.9,0.7773]
[1731150248725,3.26278447,3054.3,3053.7,0.7617]
[1731150248950,0.55,3054.1,3053.7,0.7617]
[1731150249808,3.68425573,3054.3,3053.7,0.7617]
[1731150250160,1.17260785,3054.2,3053.7,0.7617]
[1731150250449,1.85686358,3054.2,3053.7,0.7617]
[1731150250634,4.85686358,3054.2,3053.7,0.7617]
[1731150250957,4.85686358,3054.2,3052.6,2.71278447]
[1731150251165,3.0,3053.6,3052.7,0.7617]
[1731150251660,0.68425573,3053.7,3052.7,0.7617]
[1731150251965,0.68425573,3053.5,3052.7,0.7617]
[1731150252251,4.02541874,3053.6,3052.7,0.7617]
[1731150252252,0.68425573,3053.6,3052.7,0.7617]
[1731150252454,0.68425573,3053.5,3052.7,0.7617]
[1731150252658,0.17096745,3053.4,3052.7,0.7617]
[1731150256251,0.85522318,3053.4,3052.7,0.7617]
[1731150257448,3.85522318,3053.4,3052.7,0.7617]
[1731150258063,0.17096745,3053.4,3052.7,0.7617]
[1731150258264,0.85522318,3053.4,3052.7,0.7617]
[1731150258441,0.45173816,3053.3,3052.7,0.7617]
[1731150259672,4.34641416,3053.5,3052.7,0.7617]
[1731150259844,0.66215843,3053.5,3052.7,0.7617]
[1731150260874,0.64500701,3053.5,3052.7,0.7617]
[1731150261314,0.68425573,3053.9,3052.9,0.7617]
[1731150261483,0.68425573,3054.2,3053.0,0.7617]
[1731150261783,0.68425573,3054.3,3053.0,0.7617]
[1731150261939,0.68425573,3054.4,3053.0,0.7617]
[1731150262477,0.68425573,3054.5,3053.1,0.82719334]
[1731150262803,0.68425573,3054.6,3053.3,0.7617]
[1731150263564,0.68425573,3054.6,3053.4,0.82718832]
[1731150263739,1.36722499,3054.9,3053.4,0.82718832]
[1731150263740,0.68425573,3054.9,3053.4,0.82718832]
[1731150264256,0.68425573,3055.0,3053.4,0.82718832]
[1731150264564,0.68425573,3055.0,3053.5,0.7617]
[1731150264769,0.68425573,3055.0,3053.7,0.7617]
[1731150264957,0.68425573,3055.2,3054.0,0.7617]
[1731150265199,0.68425573,3055.3,3054.0,0.7617]
[1731150267627,3.68425573,3055.4,3054.0,0.7617]
[1731150267823,0.75625417,3055.3,3054.0,0.7617]
[1731150268028,1.4405099,3055.3,3054.0,0.7617]
[1731150268195,3.68425573,3055.4,3054.0,0.7617]
[1731150269922,0.68425573,3055.3,3054.0,0.7617]
[1731150270607,3.68425573,3055.4,3054.1,0.86547769]
[1731150270803,0.68425573,3055.4,3054.1,0.8]
[1731150271009,4.48802304,3055.5,3054.1,0.8]
[1731150271245,0.48291861,3055.4,3054.1,0.8]
[1731150280554,3.0,3054.5,3053.4,0.8033]
[1731150280760,3.0,3053.9,3052.3,0.8033]
[1731150281762,3.0,3053.9,3052.3,3.51608447]
[1731150281972,3.7602,3054.2,3052.5,0.8033]
[1731150282966,4.40326282,3054.2,3052.5,0.8033]
[1731150284132,0.55,3054.3,3052.7,0.8033]
[1731150284450,1.48198745,3054.3,3052.9,0.8033]
[1731150284967,4.19477192,3054.3,3052.9,0.8033]
[1731150285154,3.0,3054.2,3052.9,0.8033]
[1731150287854,3.68425573,3054.2,3052.9,0.8033]
[1731150288061,3.0,3053.9,3052.9,0.8033]
[1731150290550,3.57127845,3053.9,3052.9,0.8033]
[1731150291765,0.57127845,3053.9,3052.9,0.8033]
[1731150291962,3.0,3054.2,3052.9,0.8033]
[1731150292174,3.0,3054.2,3053.0,0.89360319]
[1731150292548,5.12669043,3054.3,3053.0,0.89360319]
[1731150293697,5.81094616,3054.3,3053.0,0.89360319]
[1731150293986,0.68425573,3054.6,3053.2,0.8281]
[1731150294193,0.68425573,3054.7,3053.3,0.06548576]
[1731150294410,0.68425573,3055.0,3053.4,0.8281]
[1731150294692,0.68425573,3055.3,3053.7,0.8281]
[1731150294993,1.02541874,3055.4,3053.7,0.8281]
[1731150294994,0.68425573,3055.4,3053.7,0.8281]
[1731150295198,0.64892118,3055.4,3053.9,0.8281]
[1731150296094,0.1400828,3055.5,3053.9,0.8281]
[1731150296273,3.1400828,3055.5,3053.9,0.8281]
[1731150302305,3.1400828,3055.5,3054.0,0.89357473]
[1731150302677,3.1400828,3055.5,3054.2,0.8281]
[1731150304293,3.1400828,3055.5,3054.3,0.89357216]
[1731150304294,0.1400828,3055.5,3054.3,0.89357216]
[1731150304744,0.1400828,3055.5,3054.3,0.8281]
[1731150305898,0.1400828,3055.5,3054.5,0.8281]
[1731150306093,0.1400828,3055.5,3054.7,0.8281]
[1731150306462,0.1400828,3055.5,3054.4,0.7916]
[1731150308097,3.1400828,3055.5,3054.4,0.7916]
[1731150308292,3.72536953,3055.5,3054.4,0.7916]
[1731150308605,3.1400828,3055.5,3054.4,0.7916]
[1731150315465,0.55,3055.4,3054.4,0.7916]
[1731150317965,3.1400828,3055.5,3054.4,0.7916]
[1731150318459,3.82433853,3055.5,3054.4,0.7916]
[1731150318759,3.0,3055.2,3054.4,0.7916]
[1731150318963,0.57127845,3055.1,3054.4,0.7916]
[1731150319164,3.1400828,3055.5,3054.4,0.7916]
[1731150319451,3.82433853,3055.5,3054.4,0.7916]
[1731150319664,0.55,3055.4,3054.4,0.7916]
[1731150319821,3.52248447,3055.3,3054.4,0.7916]
[1731150320015,3.0,3055.2,3054.4,0.7916]
[1731150320222,0.65224845,3055.1,3054.4,0.7916]
[1731150321332,3.0,3054.9,3054.4,0.7916]
[1731150321579,0.65224845,3055.1,3054.4,0.7916]
[1731150325262,0.55,3055.0,3054.4,0.7916]
[1731150327777,6.26278447,3055.0,3054.4,0.7916]
[1731150327964,0.83821887,3054.9,3054.4,0.7916]
[1731150330404,2.71278447,3054.7,3052.8,0.8145]
[1731150330607,3.0,3054.6,3052.8,0.8145]
[1731150330965,0.55,3054.5,3052.8,0.8145]
[1731150331316,3.68425573,3054.6,3052.8,0.8145]
[1731150331599,4.56322412,3054.6,3053.0,0.8145]
[1731150331960,4.56322412,3054.6,3052.9,2.71278447]
[1731150331961,0.68425573,3054.5,3053.2,0.8145]
[1731150332911,3.0,3054.3,3053.2,0.8145]
[1731150333079,3.68425573,3054.3,3053.2,0.8145]
[1731150334568,0.68425573,3054.1,3053.2,0.8145]
[1731150334906,3.55,3054.0,3053.4,0.8145]
[1731150335106,0.55,3053.8,3053.4,0.8145]
[1731150335466,0.69470402,3053.9,3053.4,0.8145]
[1731150336294,0.55,3053.8,3053.4,0.8145]
[1731150336726,3.0,3053.7,3052.2,0.8145]
[1731150336928,0.69470402,3053.9,3052.3,0.95489451]
[1731150336929,1.37895975,3053.9,3052.3,0.95489451]
[1731150337247,4.02541874,3054.0,3052.3,0.95489451]
[1731150337248,3.68425573,3054.0,3052.3,0.88938308]
[1731150337403,0.68425573,3053.8,3052.3,0.88938308]
[1731150337603,0.68425573,3053.8,3052.3,0.8145]
[1731150337808,4.21022318,3053.8,3052.4,0.88933329]
[1731150338132,0.68425573,3053.7,3052.4,0.8145]
[1731150338440,4.21022318,3053.8,3052.4,0.8145]
[1731150339147,1.21022318,3053.8,3052.4,0.8145]
[1731150339644,0.55,3053.7,3052.4,0.8145]
[1731150339853,0.44730077,3053.6,3052.4,0.8145]
[1731150340396,0.55,3053.5,3052.5,0.07231839]
[1731150340647,0.55,3053.3,3052.5,0.88681839]
[1731150340851,0.55,3053.3,3052.5,0.8145]
[1731150341218,3.0,3053.4,3052.5,0.8145]
[1731150341563,0.55,3053.3,3052.5,0.8145]
[1731150344171,1.11302008,3053.6,3052.5,0.8145]
[1731150344362,1.02972758,3053.5,3052.6,0.06949165]
[1731150344505,1.02972758,3053.5,3052.6,0.8145]
[1731150346748,3.0,3053.4,3052.6,0.8145]
[1731150349139,4.02972758,3053.5,3052.6,0.8145]
[1731150349460,1.02972758,3053.5,3052.6,0.8145]
[1731150349612,0.55,3053.5,3052.6,0.8145]
[1731150350646,3.26278447,3053.5,3052.6,0.8145]
[1731150350851,3.0,3053.4,3052.6,0.8145]
[1731150351050,0.55,3053.3,3052.6,0.8145]
[1731150352352,1.11302008,3053.6,3052.6,0.8145]
[1731150352670,0.55,3053.4,3052.6,0.8145]
[1731150353029,0.41130201,3053.5,3052.6,0.8145]
[1731150353442,0.41130201,3053.5,3052.8,0.8087]
[1731150353769,1.310533,3054.0,3052.9,0.06953613]
[1731150353930,1.310533,3054.0,3052.9,0.8087]
[1731150354275,1.20970229,3054.2,3052.9,0.8087]
[1731150355552,0.66164359,3053.7,3052.9,0.8087]
[1731150358699,0.68425573,3054.5,3053.0,0.87420708]
[1731150359005,0.24559311,3054.4,3053.0,0.8087]
[1731150359162,4.1578402,3054.7,3053.0,0.8087]
[1731150359378,0.65478119,3054.5,3053.0,0.8087]
[1731150362323,3.26278447,3054.4,3053.0,0.8087]
[1731150362526,3.0,3054.3,3053.0,0.8087]
[1731150362712,3.76783657,3054.3,3053.0,0.8087]
[1731150362884,3.76783657,3054.3,3053.2,0.8087]
[1731150364397,0.55,3054.2,3053.2,0.8087]
[1731150364798,3.55,3054.0,3053.2,0.8087]
[1731150366186,4.3108,3054.0,3053.2,0.8087]
[1731150366491,0.55,3053.8,3053.2,0.8087]
[1731150367204,3.0,3054.0,3053.2,0.8087]
[1731150367405,0.55,3054.0,3053.2,0.8087]
[1731150367603,0.55,3054.1,3053.2,0.8087]
[1731150368614,0.68425573,3054.2,3053.2,0.8087]
[1731150368834,1.52153816,3054.2,3053.2,0.8087]
[1731150369538,0.83728243,3054.2,3053.2,0.8087]
[1731150370316,1.52153816,3054.2,3053.2,0.8087]
[1731150372123,0.68425573,3054.1,3053.2,0.8087]
[1731150372338,3.68425573,3054.1,3053.2,0.8087]
[1731150372498,4.31573508,3054.1,3053.2,0.8087]
[1731150375227,4.9349751,3054.0,3052.9,0.7814]
[1731150375441,1.9349751,3054.0,3052.9,0.7814]
[1731150377566,1.9349751,3054.0,3052.2,0.01]
[1731150377567,0.68425573,3054.0,3053.0,0.8469003]
[1731150377774,0.68425573,3054.0,3053.1,0.7814]
[1731150378678,3.68425573,3054.0,3053.1,0.7814]
[1731150378859,4.41701761,3054.0,3053.1,0.7814]
[1731150379060,3.68425573,3054.0,3053.1,0.7814]
[1731150379712,0.68425573,3054.0,3053.1,0.7814]
[1731150379893,0.68425573,3054.0,3053.2,0.06107723]
[1731150380095,0.68425573,3054.0,3053.3,0.7814]
[1731150381369,3.68425573,3054.2,3053.1,0.7814]
[1731150381674,0.68425573,3054.3,3053.3,0.7898]
[1731150381916,4.02541874,3054.4,3053.3,0.7898]
[1731150381917,0.68425573,3054.2,3053.3,0.7898]
[1731150382398,0.68425573,3054.2,3053.4,0.85063987]
[1731150382606,0.68425573,3054.3,3053.4,0.7898]
[1731150384012,4.68019993,3054.5,3053.6,0.7898]
[1731150384013,0.68425573,3054.4,3053.6,0.7898]
[1731150384211,0.68425573,3054.6,3053.8,0.7898]
[1731150384394,0.68425573,3054.6,3053.9,0.06061429]
[1731150384592,0.68425573,3054.7,3054.0,0.7898]
[1731150384764,0.85522318,3054.7,3054.0,0.7898]
[1731150384968,0.68425573,3054.6,3054.0,0.7898]
[1731150385167,0.85522318,3054.7,3054.0,0.7898]
[1731150385876,0.17096745,3054.7,3054.0,0.7898]
[1731150386093,0.68425573,3054.8,3054.0,0.7898]
[1731150386271,0.68425573,3054.8,3054.1,0.85021162]
[1731150386470,0.68425573,3054.9,3054.1,0.7898]
[1731150387107,0.68425573,3054.8,3054.1,0.7898]
[1731150387681,0.68425573,3054.9,3054.1,0.7898]
[1731150387913,0.53729331,3054.8,3054.1,0.7898]
[1731150389363,0.68425573,3054.9,3054.1,0.7898]
[1731150392586,0.68425573,3054.7,3054.1,0.7898]
[1731150393161,0.68425573,3054.6,3054.1,0.7898]
[1731150393561,3.39387596,3054.7,3054.1,0.7898]
[1731150393892,0.68425573,3054.4,3052.7,0.7958]
[1731150394060,1.23231318,3054.4,3052.9,0.7958]
[1731150394264,0.68425573,3054.3,3052.9,0.7958]
[1731150395188,0.68425573,3054.4,3053.1,0.7958]
[1731150395392,0.68425573,3054.5,3053.2,0.85460344]
[1731150395545,4.02541874,3054.6,3053.2,0.85460344]
[1731150395546,0.68425573,3054.6,3053.2,0.85460344]
[1731150396486,0.68425573,3054.5,3053.2,0.85460344]
[1731150397993,0.68425573,3054.4,3053.2,0.7958]
[1731150398152,0.68425573,3054.4,3053.3,0.05685264]
[1731150398351,0.68425573,3054.3,3053.4,0.7958]
[1731150399246,0.68425573,3054.2,3053.4,0.7958]
[1731150400094,0.68425573,3054.3,3053.4,0.7958]
[1731150402163,0.68425573,3054.2,3053.4,0.7958]
[1731150403157,0.68425573,3054.1,3053.4,0.7958]
[1731150403357,0.68425573,3054.2,3053.4,0.7958]
[1731150407800,0.68425573,3054.2,3053.6,0.7952]
[1731150408005,0.68425573,3054.2,3053.7,0.05661451]
[1731150408175,1.12606262,3054.2,3053.8,0.7952]
[1731150408808,0.68425573,3054.2,3053.8,0.7952]
[1731150408969,1.53819244,3054.5,3053.8,0.7952]
[1731150408970,0.68425573,3054.3,3053.8,0.7952]
[1731150409863,0.68425573,3054.4,3053.8,0.7952]
[1731150410962,0.68425573,3054.3,3053.8,0.7952]
[1731150411405,0.68425573,3054.2,3053.8,0.7952]
[1731150412481,0.98025425,3054.3,3053.8,0.7952]
[1731150412722,0.68425573,3054.2,3053.8,0.7952]
[1731150412921,0.68425573,3054.3,3053.8,0.7952]
[1731150413242,0.68425573,3054.3,3053.9,0.87508971]
[1731150413386,0.68425573,3054.7,3054.1,1.25031077]
[1731150413720,0.68425573,3055.0,3054.2,0.93143568]
[1731150413919,1.17813206,3055.1,3054.4,0.8096]
[1731150414120,1.17813206,3055.1,3054.4,0.8750717]
[1731150414324,1.17813206,3055.1,3054.4,0.8096]
[1731150414479,1.17813206,3055.1,3054.6,0.8096]
[1731150415024,1.17813206,3055.1,3054.7,0.05611429]
[1731150415685,1.17813206,3055.1,3054.6,0.8096]
[1731150416924,0.49387633,3055.1,3054.6,0.8096]
[1731150417093,1.17813206,3055.1,3054.6,0.8096]
[1731150417488,4.69848714,3055.1,3054.6,0.8096]
[1731150417916,1.69848714,3055.1,3054.6,0.8096]
[1731150418405,1.01423141,3055.1,3054.6,0.8096]
[1731150418615,0.49387633,3055.1,3054.6,0.8096]
[1731150421101,1.17813206,3055.1,3054.6,0.8096]
[1731150421302,0.49387633,3055.1,3054.6,0.8096]
[1731150423510,0.49387633,3055.1,3054.7,0.06546462]
[1731150423703,0.49387633,3055.1,3054.8,0.8112]
[1731150424329,0.49387633,3055.1,3055.0,0.8112]
[1731150424863,0.49387633,3055.1,3055.0,0.86685949]
[1731150426333,0.49387633,3055.1,3055.0,0.8112]
[1731150429453,0.49387633,3055.1,3053.8,0.7758]
[1731150429617,0.49387633,3055.1,3053.9,0.83193037]
[1731150430611,0.49387633,3055.1,3054.1,0.7758]
[1731150430851,0.49387633,3055.1,3054.3,0.7758]
[1731150431211,0.49387633,3055.1,3054.5,0.7758]
[1731150431916,3.55,3055.0,3054.3,0.8265]
[1731150432129,3.55,3055.0,3053.1,0.8265]
[1731150432130,1.50395573,3054.8,3053.1,0.8265]
[1731150432335,0.68425573,3054.7,3053.1,0.8265]
[1731150432551,4.50395573,3054.8,3053.3,0.8265]
[1731150432721,0.68425573,3054.7,3053.3,0.8265]
[1731150432923,1.31974494,3054.7,3053.3,0.8265]
[1731150433155,4.50395573,3054.8,3053.4,0.89198958]
[1731150433328,0.82551761,3054.9,3053.4,0.8265]
[1731150433329,0.68425573,3054.9,3053.4,0.8265]
[1731150433530,3.68425573,3055.0,3053.6,0.8265]
[1731150433916,3.68425573,3055.0,3053.7,0.88276182]
[1731150434644,0.68425573,3054.9,3053.7,0.88276182]
[1731150434952,1.28658081,3054.9,3053.7,0.88276182]
[1731150435153,1.28658081,3054.9,3053.8,0.06548102]
[1731150435326,0.60232508,3054.9,3053.9,0.8265]
[1731150435520,0.60232508,3054.9,3054.0,0.89198102]
[1731150436139,0.60232508,3054.9,3054.0,0.8265]
[1731150436344,0.42865808,3054.8,3054.0,0.8265]
[1731150437776,3.42865808,3054.8,3054.0,0.8265]
[1731150437916,2.75391558,3054.7,3054.0,0.8265]
[1731150438121,3.0,3054.6,3054.0,0.8265]
[1731150438340,3.68425573,3054.6,3054.0,0.8265]
[1731150438640,0.57539156,3054.5,3054.0,0.8265]
[1731150439579,4.11291381,3054.8,3054.0,0.8265]
[1731150439747,0.42865808,3054.8,3054.0,0.8265]
[1731150441276,1.11291381,3054.8,3054.0,0.8265]
[1731150442171,0.42865808,3054.8,3054.0,0.8265]
[1731150442481,0.47152389,3054.7,3054.0,0.8265]
[1731150443385,1.11291381,3054.8,3054.0,0.8265]
[1731150443585,0.68425573,3054.9,3054.0,0.8265]
[1731150443948,0.68425573,3055.0,3054.0,0.8265]
[1731150444359,1.17813206,3055.1,3054.0,0.8265]
[1731150444680,1.20461081,3055.0,3054.0,0.8265]
[1731150447087,2.38446695,3055.2,3054.0,0.8265]
[1731150447391,1.02541874,3055.1,3054.0,0.8265]
[1731150447609,2.38446695,3055.2,3054.0,0.8265]
[1731150448421,1.02541874,3055.1,3054.0,0.8265]
[1731150449414,1.52558392,3055.1,3054.0,0.8265]
[1731150449971,1.02541874,3055.1,3054.0,0.8265]
[1731150450177,2.38446695,3055.2,3054.0,0.8265]
[1731150450423,1.02541874,3055.1,3054.0,0.8265]
[1731150450621,4.02541874,3055.1,3054.0,0.8265]
[1731150451020,1.02541874,3055.1,3054.0,0.8265]
[1731150451628,4.02541874,3055.1,3054.0,0.8265]
[1731150451921,1.82558392,3055.1,3054.1,0.7819]
[1731150452077,4.82558392,3055.1,3054.1,0.7819]
[1731150453018,1.82558392,3055.1,3054.1,0.7819]
[1731150453427,4.82558392,3055.1,3054.1,0.7819]
[1731150453583,1.82558392,3055.1,3054.1,0.7819]
[1731150454095,6.07554377,3055.1,3054.1,0.7819]
[1731150454415,4.90560044,3055.0,3054.1,0.7819]
[1731150457178,0.68515105,3054.8,3054.1,0.7819]
[1731150458178,0.68515105,3054.8,3054.2,0.84737819]
[1731150458381,0.68515105,3054.9,3054.2,0.84737819]
[1731150458796,0.68515105,3054.9,3054.2,0.7819]
[1731150459199,0.68515105,3054.8,3054.2,0.98508599]
[1731150459622,0.68515105,3054.8,3054.3,0.05613787]
[1731150459823,0.68515105,3054.8,3054.2,0.7819]
[1731150461830,0.68515105,3054.9,3054.4,0.7887]
[1731150463330,0.68515105,3055.0,3054.4,0.7887]
[1731150463836,1.02541874,3055.1,3054.4,0.7887]
[1731150465139,1.02541874,3055.2,3054.4,0.7887]
[1731150467100,1.02541874,3055.1,3054.4,0.7887]
[1731150467843,1.02541874,3055.2,3054.4,0.7887]
[1731150468052,1.02541874,3055.1,3054.4,0.7887]
[1731150468422,1.02541874,3055.2,3054.4,0.7887]
[1731150468820,1.02541874,3055.1,3054.4,0.7887]
[1731150469026,1.02541874,3055.2,3054.4,0.7887]
[1731150469210,4.02541874,3055.4,3054.4,0.7887]
[1731150469407,4.02541874,3055.4,3054.2,1.24995985]
[1731150469408,1.02541874,3055.4,3054.6,0.809]
[1731150469738,4.16550154,3055.5,3054.6,0.809]
[1731150469937,1.16550154,3055.5,3054.6,0.809]
[1731150472471,1.11550154,3055.5,3054.6,0.809]
[1731150473570,0.0900828,3055.5,3054.6,0.809]
[1731150474047,0.0900828,3055.5,3054.7,0.87446634]
[1731150474243,0.0900828,3055.5,3054.7,0.809]
[1731150475462,0.0900828,3055.5,3054.9,0.809]
[1731150475653,0.0900828,3055.5,3055.1,0.809]
[1731150475989,0.0900828,3055.5,3055.2,0.86446245]
[1731150476947,0.0900828,3055.5,3055.2,0.809]
[1731150477174,0.0900828,3055.5,3055.3,0.05541276]
[1731150477564,0.0900828,3055.5,3055.2,0.809]
[1731150477976,0.0900828,3055.5,3055.3,0.05541276]
[1731150478587,0.0900828,3055.5,3055.2,0.809]
[1731150478894,0.0900828,3055.5,3055.3,0.05541276]
[1731150479279,0.0900828,3055.5,3055.2,0.809]
[1731150479596,0.0900828,3055.5,3055.3,0.05541276]
[1731150479994,0.0900828,3055.5,3055.2,0.809]
[1731150480351,0.0900828,3055.5,3055.3,0.05541276]
[1731150480787,0.0900828,3055.5,3055.2,0.809]
[1731150481272,0.0900828,3055.5,3055.3,0.05536722]
[1731150481469,0.0900828,3055.5,3055.2,0.809]
[1731150481675,0.0900828,3055.5,3055.3,0.05536722]
[1731150481860,0.0900828,3055.5,3055.2,0.809]
[1731150482055,0.0900828,3055.5,3055.3,0.0553824]
[1731150482598,0.0900828,3055.5,3055.2,0.809]
[1731150482957,0.0900828,3055.5,3055.3,0.0553824]
[1731150483467,0.0900828,3055.5,3055.2,0.809]
[1731150483671,0.0900828,3055.5,3055.3,0.0553824]
[1731150484071,0.0900828,3055.5,3055.2,0.809]
[1731150484592,0.0900828,3055.5,3054.6,0.06545488]
[1731150484593,0.0900828,3055.5,3055.4,0.7886]
[1731150486508,0.0900828,3055.5,3055.4,0.7886]
[1731150487725,0.0900828,3055.5,3054.6,0.8086]
[1731150488014,0.0900828,3055.5,3054.8,0.8086]
[1731150488520,0.0900828,3055.5,3055.0,0.8086]
[1731150488813,0.0900828,3055.5,3055.1,0.05538977]
[1731150489178,0.0900828,3055.5,3055.0,0.8086]
[1731150489379,0.0900828,3055.5,3055.2,0.05535526]
[1731150489613,0.0900828,3055.5,3055.0,0.8086]
[1731150489817,0.0900828,3055.5,3055.3,0.05530557]
[1731150490017,0.0900828,3055.5,3055.0,0.8086]
[1731150490689,0.0900828,3055.5,3055.1,0.05540496]
[1731150490941,0.0900828,3055.5,3055.0,0.8086]
[1731150491226,0.0900828,3055.5,3055.2,0.05535526]
[1731150491516,0.0900828,3055.5,3055.2,0.8086]
[1731150491718,0.0900828,3055.5,3055.3,0.05530557]
[1731150494089,0.0900828,3055.5,3055.2,0.8086]
[1731150494426,0.0900828,3055.5,3055.3,0.05530557]
[1731150498920,1.24995985,3055.4,3055.3,0.05530557]
[1731150499230,0.0900828,3055.5,3055.0,0.8086]
[1731150506010,0.0900828,3055.5,3054.3,3.55]
[1731150506351,0.0900828,3055.5,3054.5,0.7995]
[1731150506648,0.0900828,3055.5,3054.6,0.05382053]
[1731150508725,0.8224,3055.4,3054.6,0.05382053]
[1731150509779,0.8224,3055.4,3054.6,0.11928568]
[1731150509933,0.8224,3055.4,3054.7,0.766]
[1731150510131,0.8224,3055.4,3054.8,0.05374991]
[1731150514173,0.0900828,3055.5,3054.8,0.05374991]
[1731150515438,1.11550154,3055.5,3054.8,0.05374991]
[1731150516778,0.0900828,3055.5,3054.8,0.05374991]
[1731150518465,0.0900828,3055.5,3054.9,0.7524]
[1731150518900,0.0900828,3055.5,3055.0,0.05365051]
[1731150521969,0.0900828,3055.5,3054.6,0.8071]
[1731150522169,0.0900828,3055.5,3054.7,0.5595056]
[1731150522967,0.7691,3055.4,3054.7,0.5595056]
[1731150523183,2.01905985,3055.4,3054.7,0.05379962]
[1731150523384,0.7691,3055.3,3054.7,0.05379962]
[1731150523583,1.79451874,3055.3,3054.4,0.8071]
[1731150523812,1.79451874,3055.3,3054.8,0.05374991]
[1731150524111,1.79451874,3055.3,3054.4,0.8071]
[1731150524612,1.79451874,3055.3,3054.5,0.05391184]
[1731150525799,0.7691,3055.2,3054.5,0.05391184]
[1731150526012,1.24995985,3055.0,3054.5,0.05391184]
[1731150526181,0.7691,3054.9,3054.5,0.05391184]
[1731150526377,0.7691,3054.9,3053.7,0.8071]
[1731150526582,1.79451874,3054.9,3053.8,0.05285762]
[1731150527021,1.79451874,3054.9,3053.8,1.30281747]
[1731150527221,0.7691,3054.9,3053.8,1.30281747]
[1731150527380,0.7691,3054.9,3053.9,0.21099175]
[1731150527587,0.7691,3054.9,3054.0,0.05277334]
[1731150528400,1.79451874,3054.9,3054.0,0.05277334]
[1731150528704,0.7945,3054.9,3054.0,0.05277334]
[1731150529017,0.7945,3054.8,3054.1,0.05272361]
[1731150529199,0.7945,3054.7,3054.1,0.05272361]
[1731150529398,0.7945,3054.7,3053.7,0.8071]
[1731150529610,0.7945,3054.7,3053.8,1.24995985]
[1731150529808,0.7945,3054.7,3053.8,1.36664436]
[1731150529982,0.7945,3054.7,3053.8,1.301166]
[1731150530399,0.7945,3054.9,3054.1,0.7945]
[1731150530928,0.7945,3054.9,3054.2,0.05100722]
[1731150531288,0.7945,3054.9,3054.1,0.7945]
[1731150531729,0.7945,3054.9,3054.2,0.05100722]
[1731150532088,0.7945,3054.9,3054.1,0.7945]
[1731150532413,0.7945,3054.9,3054.2,0.25545321]
[1731150533419,0.7945,3055.2,3054.4,1.24995985]
[1731150533727,0.7945,3055.2,3054.5,0.06546702]
[1731150533928,0.7945,3055.2,3054.5,0.11632508]
[1731150534832,0.7945,3055.2,3054.6,0.7945]
[1731150535132,0.7945,3055.2,3054.6,1.01057849]
[1731150535428,0.7945,3055.2,3054.7,0.05077381]
[1731150536989,0.8845828,3055.5,3054.7,0.05077381]
[1731150537187,0.8845828,3055.5,3054.6,0.7945]
[1731150537402,0.8845828,3055.5,3054.7,0.05074346]
[1731150537601,1.50057894,3055.5,3054.7,0.05074346]
[1731150537795,1.50057894,3055.5,3054.6,0.7945]
[1731150538227,2.75053879,3055.5,3054.6,0.7945]
[1731150538727,3.0,3055.4,3054.6,0.7945]
[1731150538900,0.7945,3055.2,3054.6,0.7945]
[1731150540906,0.7945,3055.4,3054.6,0.7945]
[1731150541932,0.7945,3055.4,3054.7,0.05071224]
[1731150542294,0.7945,3055.4,3054.6,0.7945]
[1731150543549,0.0900828,3055.5,3054.7,0.84122742]
[1731150544037,0.0900828,3055.5,3054.7,0.7905]
[1731150544893,0.0900828,3055.5,3054.8,0.05067771]
[1731150545390,0.0900828,3055.5,3054.7,0.7905]
[1731150547734,0.0900828,3055.5,3054.8,0.0506929]
[1731150548098,0.0900828,3055.5,3054.7,0.7905]
[1731150548649,0.0900828,3055.5,3054.9,0.7785]
[1731150549101,0.0900828,3055.5,3055.0,0.05059433]
[1731150549299,0.0900828,3055.5,3055.0,0.11605387]
[1731150550445,0.0900828,3055.5,3055.0,0.05059433]
[1731150551139,0.0900828,3055.5,3055.1,0.7785]
[1731150551497,0.0900828,3055.5,3055.2,0.05049494]
[1731150556841,0.30580711,3055.4,3055.2,0.05049494]
[1731150557143,0.0900828,3055.5,3055.2,0.05049494]
[1731150557437,0.0900828,3055.5,3055.1,0.7785]
[1731150557438,0.30584243,3055.4,3055.3,0.05032563]
[1731150557838,0.30584243,3055.4,3055.1,0.7785]
[1731150558042,0.0900828,3055.5,3055.1,0.7785]
[1731150558243,0.0900828,3055.5,3055.2,0.05037532]
[1731150558441,0.30587123,3055.4,3055.2,0.05037532]
[1731150558608,0.0900828,3055.5,3055.2,0.05037532]
[1731150558941,0.30586438,3055.4,3055.2,0.05037532]
[1731150559132,0.0900828,3055.5,3055.2,0.05037532]
[1731150559306,0.30593926,3055.4,3055.2,0.05037532]
[1731150559509,0.0900828,3055.5,3055.2,0.05037532]
[1731150559816,0.3059363,3055.4,3055.2,0.05037532]
[1731150560147,0.30605457,3055.3,3055.2,0.05037532]
[1731150561098,0.30610414,3055.3,3055.2,0.05037532]
[1731150563155,1.05640414,3055.3,3055.2,0.05037532]
[1731150563471,1.54659353,3055.3,3054.8,0.763]
[1731150563633,0.30626585,3055.2,3054.8,0.763]
[1731150563829,0.30626585,3055.1,3054.8,0.763]
[1731150564035,0.7503,3055.3,3054.9,0.05058908]
[1731150564260,0.3063147,3055.2,3054.9,0.05058908]
[1731150564467,0.3063147,3055.1,3054.8,0.763]
[1731150564635,0.7503,3055.3,3055.0,0.05053938]
[1731150564841,0.30632788,3055.2,3054.9,0.05058908]
[1731150565169,0.7503,3055.3,3054.8,0.763]
[1731150565373,0.30635108,3055.2,3054.8,0.763]
[1731150565668,0.7503,3055.3,3054.8,0.763]
[1731150565975,0.30635097,3055.2,3054.8,0.763]
[1731150566154,0.7503,3055.3,3054.8,0.763]
[1731150566359,0.30637577,3055.2,3054.8,0.763]